[Event "Czech Open-E Teams 2022"]
[Site "Pardubice"]
[Date "2022.07.15"]
[Round "2.39"]
[White "Urban, Tomas"]
[Black "Opravil, Karel"]
[Result "0-1"]
[ECO "A46"]
[WhiteElo "1815"]
[BlackElo "2065"]
[Annotator "ChessBase"]
[PlyCount "90"]
[EventDate "2022.07.14"]
[EventType "team-tourn"]
[EventCountry "CZE"]
[SourceTitle "playchess.com"]
[Source "ChessBase"]
[SourceQuality "1"]
[TimeControl "5400+30"]

1. d4 {[%emt 0:01:03]} Nf6 {[%emt 0:00:09]} 2. Nf3 {[%emt 0:00:13]} e6 {[%emt 0:00:17]} 3. e3 {[%emt 0:00:23]} c5 {[%emt 0:00:20]} 4. c3 {[%emt 0:00:53]} b6 {[%emt 0:00:32]} 5. Bd3 {[%emt 0:00:42]} Bb7 {[%emt 0:00:53]} 6. Nbd2 {[%emt 0:00:23]} d5 7. O-O {[%emt 0:02:15]} Nbd7 {[%emt 0:00:37]} 8. Ne5 {[%emt 0:07:10]} Bd6 {[%emt 0:01:46]} 9. f4 {[%emt 0:04:05]} O-O {[%emt 0:00:55]} 10. g4 {[%emt 0:06:20]} Ne4 {[%emt 0:04:15]} 11. Qf3 {[%emt 0:09:44]} Bxe5 {[%emt 0:07:46]} 12. fxe5 {[%emt 0:02:05]} f6 {[%emt 0:02:32]} 13. Nxe4 {[%emt 0:15:33]} fxe5 {[%emt 0:02:32]} 14. Qh3 {[%emt 0:27:51]} Rxf1+ {[%emt 0:01:03]} 15. Bxf1 {[%emt 0:01:25]} dxe4 {[%emt 0:00:06]} 16. Bd2 {[%emt 0:02:18]} Qg5 {[%emt 0:01:34]} 17. Bb5 {[%emt 0:01:31]} Nf6 {[%emt 0:01:41]} 18. Bc4 {[%emt 0:04:34]} Bd5 {[%emt 0:00:31]} 19. dxe5 {[%emt 0:01:27]} Nxg4 {[%emt 0:04:47]} 20. Bxd5 {[%emt 0:03:16]} exd5 {[%emt 0:01:56]} 21. Rf1 {[%emt 0:01:56]} Nxe5+ {[%emt 0:00:54]} 22. Kh1 {[%emt 0:00:16]} Nf3 {[%emt 0:01:14]} 23. Be1 {[%emt 0:03:24]} Nxe1 {[%emt 0:02:37]} 24. Rxe1 {[%emt 0:00:18]} Rf8 {[%emt 0:00:05]} 25. Re2 {[%emt 0:03:01]} Qf6 {[%emt 0:01:34]} 26. Kg1 {[%emt 0:00:18]} Qf3 {[%emt 0:00:19]} 27. Qxf3 {[%emt 0:00:28]} Rxf3 {[%emt 0:00:15]} 28. Kg2 {[%emt 0:01:04]} Kf7 {[%emt 0:00:16]} 29. Kg1 {[%emt 0:00:15]} Ke6 {[%emt 0:00:09]} 30. Kg2 {[%emt 0:00:06]} Ke5 {[%emt 0:00:04]} 31. Kg1 {[%emt 0:00:20]} g5 {[%emt 0:00:54]} 32. Kg2 {[%emt 0:00:16]} g4 {[%emt 0:00:10]} 33. Kg1 {[%emt 0:01:09]} h5 {[%emt 0:00:04]} 34. Kg2 {[%emt 0:00:20]} h4 {[%emt 0:00:07]} 35. Kg1 {[%emt 0:00:24]} g3 {[%emt 0:00:37]} 36. h3 {[%emt 0:00:32]} Rf2 {[%emt 0:00:12]} 37. Rxf2 {[%emt 0:00:39]} gxf2+ {[%emt 0:00:07]} 38. Kxf2 {[%emt 0:00:05]} d4 {[%emt 0:00:02]} 39. cxd4+ {[%emt 0:01:24]} cxd4 {[%emt 0:00:07]} 40. exd4+ {[%emt 0:00:23]} Kxd4 {[%emt 0:00:05]} 41. Ke2 {[%emt 0:00:35]} e3 {[%emt 0:00:10]} 42. a3 {[%emt 0:00:30]} Ke4 {[%emt 0:00:07]} 43. b3 {[%emt 0:00:32]} Kd4 {[%emt 0:00:06]} 44. b4 {[%emt 0:00:24]} b5 {[%emt 0:00:04]} 45. Kd1 {[%emt 0:01:10]} Kd3 {[%emt 0:00:30]} 0-1

[Event "Czech Open-E Teams 2022"]
[Site "Pardubice"]
[Date "2022.07.15"]
[Round "2.40"]
[White "Reichl, Roman"]
[Black "Svadlenka, Jaroslav"]
[Result "0-1"]
[ECO "E20"]
[WhiteElo "1770"]
[BlackElo "1872"]
[Annotator "NA"]
[PlyCount "42"]
[EventDate "2022.07.14"]
[EventType "team-tourn"]
[EventCountry "CZE"]
[SourceTitle "playchess.com"]
[Source "ChessBase"]
[SourceQuality "1"]
[TimeControl "5400+30"]

1. d4 {[%emt 0:00:07]} Nf6 {[%emt 0:00:09]} 2. c4 {[%emt 0:00:30]} e6 {[%emt 0:00:10]} 3. Nc3 {[%emt 0:00:35]} Bb4 {[%emt 0:00:10]} 4. Bd2 {[%emt 0:00:28]} O-O {[%emt 0:00:18]} 5. Nf3 {[%emt 0:00:25]} b6 {[%emt 0:02:02]} 6. e3 {[%emt 0:00:16]} Bb7 {[%emt 0:00:07]} 7. Be2 {[%emt 0:00:03]} d5 {[%emt 0:00:51]} 8. cxd5 {[%emt 0:01:32]} exd5 {[%emt 0:00:20]} 9. O-O {[%emt 0:00:52]} Nbd7 {[%emt 0:01:45]} 10. Qb3 {[%emt 0:01:43]} Bxc3 {[%emt 0:05:30]} 11. Bxc3 {[%emt 0:00:33]} Ne4 {[%emt 0:00:28]} 12. Rac1 {[%emt 0:01:29]} Rb8 {[%emt 0:02:45]} 13. Rfd1 {[%emt 0:05:15]} c5 {[%emt 0:05:27]} 14. dxc5 {[%emt 0:01:29]} bxc5 {[%emt 0:00:20]} 15. Be5 {[%emt 0:00:43]} Nxe5 {[%emt 0:00:32]} 16. Nxe5 {[%emt 0:00:27]} Qf6 {[%emt 0:05:27]} 17. f4 {[%emt 0:04:08]} Qh4 {[%emt 0:06:42]} 18. g3 {[%emt 0:10:41]} Nxg3 {[%emt 0:02:22]} 19. hxg3 Qxg3+ 20. Kf1 {[%emt 0:01:54]} d4 {[%emt 0:00:59]} 21. e4 {[%emt 0:01:05]} Qxf4+ {[%emt 0:01:05]} 0-1

[Event "Czech Open-E Teams 2022"]
[Site "Pardubice"]
[Date "2022.07.15"]
[Round "2.41"]
[White "Dvorak, Martin"]
[Black "Dolezal, Radoslav"]
[Result "1/2-1/2"]
[ECO "B12"]
[WhiteElo "2142"]
[BlackElo "2392"]
[Annotator "ChessBase"]
[PlyCount "28"]
[EventDate "2022.07.14"]
[EventType "team-tourn"]
[EventCountry "CZE"]
[SourceTitle "playchess.com"]
[Source "ChessBase"]
[SourceQuality "1"]
[TimeControl "5400+30"]

1. e4 {[%emt 0:00:03]} c6 {[%emt 0:00:42]} 2. d4 {[%emt 0:00:03]} d5 {[%emt 0:00:08]} 3. Nd2 {[%emt 0:00:03]} Nd7 {[%emt 0:19:21]} 4. Ngf3 {[%emt 0:04:10]} dxe4 {[%emt 0:00:38]} 5. Nxe4 {[%emt 0:00:01]} Ndf6 {[%emt 0:05:34]} 6. Ng3 {[%emt 0:01:20]} Bg4 {[%emt 0:00:15]} 7. c3 {[%emt 0:01:48]} e6 {[%emt 0:00:06]} 8. h3 {[%emt 0:00:34]} Bxf3 {[%emt 0:00:17]} 9. Qxf3 {[%emt 0:00:02]} Qd5 {[%emt 0:01:12]} 10. Be2 {[%emt 0:03:05]} Bd6 {[%emt 0:02:51]} 11. Qd3 {[%emt 0:10:46]} Ne7 {[%emt 0:03:16]} 12. Bf3 {[%emt 0:04:14]} Qa5 {[%emt 0:00:24]} 13. Ne4 {[%emt 0:00:19]} Nxe4 {[%emt 0:07:56]} 14. Qxe4 {[%emt 0:00:23]} O-O {[%emt 0:01:24]} 1/2-1/2

[Event "Czech Open-E Teams 2022"]
[Site "Pardubice"]
[Date "2022.07.15"]
[Round "2.42"]
[White "Postupa, Pavel"]
[Black "Vecera, Dominik"]
[Result "1/2-1/2"]
[ECO "B27"]
[WhiteElo "2235"]
[BlackElo "2066"]
[Annotator "ChessBase"]
[PlyCount "92"]
[EventDate "2022.07.14"]
[EventType "team-tourn"]
[EventCountry "CZE"]
[SourceTitle "playchess.com"]
[Source "ChessBase"]
[SourceQuality "1"]
[TimeControl "5400+30"]

1. e4 {[%emt 0:00:03]} c5 {[%emt 0:00:04]} 2. Nf3 {[%emt 0:00:05]} g6 {[%emt 0:00:02]} 3. g3 {[%emt 0:05:06]} Bg7 {[%emt 0:01:26]} 4. Bg2 {[%emt 0:00:03]} Nc6 {[%emt 0:01:51]} 5. O-O {[%emt 0:00:58]} e6 {[%emt 0:02:17]} 6. Nc3 {[%emt 0:00:18]} Nge7 {[%emt 0:01:21]} 7. d3 {[%emt 0:00:14]} O-O {[%emt 0:01:43]} 8. Be3 {[%emt 0:00:20]} Nd4 {[%emt 0:05:56]} 9. Qd2 {[%emt 0:00:56]} Nec6 {[%emt 0:04:06]} 10. Ne1 {[%emt 0:00:53]} d6 {[%emt 0:04:16]} 11. f4 {[%emt 0:04:51]} Rb8 {[%emt 0:18:34]} 12. Nd1 {[%emt 0:02:54]} Ne7 {[%emt 0:03:03]} 13. c3 {[%emt 0:01:48]} Ndc6 {[%emt 0:00:11]} 14. d4 {[%emt 0:02:06]} cxd4 {[%emt 0:07:30]} 15. cxd4 {[%emt 0:00:04]} d5 {[%emt 0:01:34]} 16. e5 {[%emt 0:00:38]} a5 {[%emt 0:02:12]} 17. Rc1 {[%emt 0:07:08]} b6 {[%emt 0:04:30]} 18. g4 {[%emt 0:00:43]} f5 {[%emt 0:23:15]} 19. h3 {[%emt 0:01:54]} Qd7 {[%emt 0:01:16]} 20. Nf2 {[%emt 0:12:09]} a4 {[%emt 0:05:24]} 21. Ned3 {[%emt 0:00:26]} Na5 {[%emt 0:00:43]} 22. Nb4 {[%emt 0:08:18]} Bb7 {[%emt 0:00:45]} 23. Nfd3 {[%emt 0:04:38]} Rfc8 {[%emt 0:01:59]} 24. Qf2 {[%emt 0:08:48]} Bf8 {[%emt 0:01:31]} 25. Bf3 {[%emt 0:01:57]} Rc4 {[%emt 0:01:55]} 26. Bd1 {[%emt 0:12:35]} Rbc8 {[%emt 0:01:36]} 27. Bxa4 {[%emt 0:05:39]} Qxa4 {[%emt 0:00:27]} 28. b3 {[%emt 0:00:16]} Qb5 {[%emt 0:02:08]} 29. a4 {[%emt 0:00:12]} Qd7 {[%emt 0:00:01]} 30. bxc4 {[%emt 0:00:15]} dxc4 {[%emt 0:00:00]} 31. Nb2 {[%emt 0:07:39]} Nd5 {[%emt 0:02:20]} 32. Nxd5 {[%emt 0:00:11]} Qxd5 {[%emt 0:00:23]} 33. Kh2 {[%emt 0:00:02]} Ba3 {[%emt 0:01:08]} 34. Rc2 {[%emt 0:01:54]} c3 {[%emt 0:01:03]} 35. Nd1 {[%emt 0:01:50]} Bb4 {[%emt 0:00:36]} 36. gxf5 {[%emt 0:00:57]} exf5 {[%emt 0:00:15]} 37. Bc1 {[%emt 0:00:28]} Nb3 {[%emt 0:00:44]} 38. Ne3 {[%emt 0:00:36]} Qxd4 {[%emt 0:00:36]} 39. Rd1 {[%emt 0:01:15]} Qe4 {[%emt 0:00:21]} 40. Qh4 {[%emt 0:06:58]} Nd4 {[%emt 0:00:28]} 41. Rxd4 {[%emt 0:00:33]} Qh1+ {[%emt 0:00:48]} 42. Kg3 {[%emt 0:00:09]} Qf3+ {[%emt 0:00:02]} 43. Kh2 {[%emt 0:00:05]} Qh1+ {[%emt 0:00:28]} 44. Kg3 {[%emt 0:00:17]} Qf3+ {[%emt 0:00:03]} 45. Kh2 Qxe3 46. Rd1 Qd4 1/2-1/2

[Event "Czech Open-E Teams 2022"]
[Site "Pardubice"]
[Date "2022.07.15"]
[Round "2.43"]
[White "Vrzal, Filip"]
[Black "Vokoun, Jan"]
[Result "1-0"]
[ECO "B43"]
[WhiteElo "1849"]
[BlackElo "2056"]
[Annotator "ChessBase"]
[PlyCount "67"]
[EventDate "2022.07.14"]
[EventType "team-tourn"]
[EventCountry "CZE"]
[SourceTitle "playchess.com"]
[Source "ChessBase"]
[SourceQuality "1"]
[TimeControl "5400+30"]

1. e4 {[%emt 0:00:04]} c5 {[%emt 0:00:08]} 2. Nf3 {[%emt 0:00:04]} e6 {[%emt 0:00:11]} 3. d4 {[%emt 0:00:06]} cxd4 {[%emt 0:00:13]} 4. Nxd4 {[%emt 0:00:02]} a6 {[%emt 0:00:30]} 5. Nc3 {[%emt 0:00:48]} Qc7 {[%emt 0:00:10]} 6. Bd3 {[%emt 0:01:55]} Bd6 {[%emt 0:01:15]} 7. Qg4 {[%emt 0:06:35]} h5 {[%emt 0:00:52]} 8. Qe2 {[%emt 0:02:27]} Nc6 {[%emt 0:02:56]} 9. Nb3 {[%emt 0:03:17]} b5 {[%emt 0:01:30]} 10. Be3 {[%emt 0:06:32]} Nf6 {[%emt 0:11:21]} 11. h3 {[%emt 0:03:12]} Ne5 {[%emt 0:16:24]} 12. O-O {[%emt 0:04:58]} Nfg4 {[%emt 0:16:49]} 13. Bd4 {[%emt 0:18:19]} Nxd3 {[%emt 0:02:31]} 14. cxd3 {[%emt 0:03:03]} Bh2+ {[%emt 0:12:52]} 15. Kh1 {[%emt 0:00:10]} Be5 {[%emt 0:00:05]} 16. Bxe5 {[%emt 0:05:40]} Nxe5 {[%emt 0:00:55]} 17. f4 {[%emt 0:01:16]} Ng6 {[%emt 0:08:55]} 18. Qf2 {[%emt 0:09:12]} Qa7 {[%emt 0:02:59]} 19. Qg3 {[%emt 0:01:48]} h4 {[%emt 0:06:56]} 20. Qg4 {[%emt 0:01:35]} Kf8 {[%emt 0:03:05]} 21. f5 {[%emt 0:07:57]} Ne5 {[%emt 0:00:51]} 22. Qf4 {[%emt 0:00:11]} f6 {[%emt 0:02:40]} 23. fxe6 {[%emt 0:01:45]} d6 {[%emt 0:01:43]} 24. d4 {[%emt 0:05:40]} Nc4 {[%emt 0:02:59]} 25. d5 {[%emt 0:07:06]} Qe3 26. Qf5 Nxb2 {[%emt 0:01:37]} 27. Qg6 {[%emt 0:01:57]} Ra7 {[%emt 0:02:17]} 28. Nd1 {[%emt 0:04:30]} Nxd1 {[%emt 0:00:01]} 29. Rc1 {[%emt 0:02:07]} Nc3 {[%emt 0:00:35]} 30. Rf3 {[%emt 0:00:02]} Qh6 {[%emt 0:01:06]} 31. Qxh6 {[%emt 0:01:11]} gxh6 {[%emt 0:00:05]} 32. Rfxc3 {[%emt 0:00:09]} Bb7 {[%emt 0:00:30]} 33. Rc7 {[%emt 0:00:06]} a5 {[%emt 0:01:02]} 34. Rf7+ {[%emt 0:00:51]} 1-0

[Event "Czech Open-E Teams 2022"]
[Site "Pardubice"]
[Date "2022.07.15"]
[Round "2.44"]
[White "Krouzel, Jaroslav"]
[Black "Dvoulety, Tomas"]
[Result "1-0"]
[ECO "D02"]
[WhiteElo "2145"]
[BlackElo "1984"]
[Annotator "ChessBase"]
[PlyCount "90"]
[EventDate "2022.07.14"]
[EventType "team-tourn"]
[EventCountry "CZE"]
[SourceTitle "playchess.com"]
[Source "ChessBase"]
[SourceQuality "1"]
[TimeControl "5400+30"]

1. d4 {[%emt 0:00:07]} d5 {[%emt 0:00:06]} 2. Nf3 {[%emt 0:00:08]} Nf6 {[%emt 0:00:02]} 3. Bf4 {[%emt 0:00:09]} c5 {[%emt 0:00:34]} 4. e3 {[%emt 0:00:21]} e6 {[%emt 0:02:02]} 5. c3 {[%emt 0:00:36]} Be7 {[%emt 0:03:21]} 6. Nbd2 {[%emt 0:00:30]} O-O {[%emt 0:00:28]} 7. Bd3 {[%emt 0:00:32]} b6 {[%emt 0:00:57]} 8. Ne5 {[%emt 0:03:27]} Ba6 {[%emt 0:03:28]} 9. Bxa6 {[%emt 0:04:12]} Nxa6 {[%emt 0:00:02]} 10. O-O {[%emt 0:00:20]} Nc7 {[%emt 0:12:52]} 11. Qf3 {[%emt 0:02:02]} Nce8 {[%emt 0:03:15]} 12. Rfd1 {[%emt 0:09:12]} cxd4 {[%emt 0:03:03]} 13. cxd4 {[%emt 0:00:28]} Rc8 {[%emt 0:01:18]} 14. Rac1 {[%emt 0:00:26]} Nd6 {[%emt 0:02:05]} 15. Qe2 {[%emt 0:02:28]} Rc7 {[%emt 0:11:43]} 16. Nb3 {[%emt 0:06:41]} h6 {[%emt 0:09:16]} 17. Rxc7 {[%emt 0:15:24]} Qxc7 {[%emt 0:00:05]} 18. Rc1 {[%emt 0:00:46]} Qb7 {[%emt 0:03:08]} 19. Nc6 {[%emt 0:05:42]} Rc8 {[%emt 0:08:13]} 20. Nxe7+ {[%emt 0:08:03]} Qxe7 {[%emt 0:00:03]} 21. Rxc8+ {[%emt 0:02:46]} Nxc8 {[%emt 0:00:02]} 22. Qc2 {[%emt 0:00:32]} Nd6 {[%emt 0:04:41]} 23. Nd2 {[%emt 0:02:44]} Nfe4 {[%emt 0:03:16]} 24. Nxe4 {[%emt 0:01:24]} Nxe4 {[%emt 0:00:14]} 25. f3 {[%emt 0:00:19]} Qb4 {[%emt 0:05:54]} 26. Qc8+ {[%emt 0:03:41]} Kh7 {[%emt 0:00:12]} 27. Qc1 {[%emt 0:00:11]} Nd6 {[%emt 0:04:20]} 28. a3 {[%emt 0:05:05]} Qc4 {[%emt 0:02:01]} 29. Qb1+ {[%emt 0:00:18]} Nf5 {[%emt 0:00:31]} 30. g4 {[%emt 0:01:05]} g6 {[%emt 0:00:26]} 31. gxf5 {[%emt 0:00:22]} exf5 {[%emt 0:02:30]} 32. Qf1 {[%emt 0:00:33]} Qc2 {[%emt 0:00:24]} 33. Qf2 {[%emt 0:00:36]} Qc1+ {[%emt 0:00:26]} 34. Kg2 {[%emt 0:00:14]} Kg7 {[%emt 0:02:16]} 35. Be5+ {[%emt 0:00:36]} Kh7 {[%emt 0:00:31]} 36. Bg3 {[%emt 0:01:04]} Kg7 {[%emt 0:00:30]} 37. Qe2 {[%emt 0:02:03]} h5 {[%emt 0:01:20]} 38. Bf2 {[%emt 0:00:18]} Kh7 {[%emt 0:00:46]} 39. Qb5 {[%emt 0:00:44]} Kg7 {[%emt 0:00:43]} 40. Qxd5 {[%emt 0:00:27]} Qxb2 {[%emt 0:00:23]} 41. Qe5+ {[%emt 0:00:20]} Kh7 {[%emt 0:00:43]} 42. Qe7 {[%emt 0:00:28]} Qb3 {[%emt 0:00:27]} 43. Qxa7 {[%emt 0:02:01]} b5 {[%emt 0:00:30]} 44. Qc5 {[%emt 0:00:41]} Kg7 {[%emt 0:00:49]} 45. d5 {[%emt 0:00:29]} Qb4 1-0

[Event "Czech Open-E Teams 2022"]
[Site "Pardubice"]
[Date "2022.07.15"]
[Round "3.1"]
[White "Mladek, Richard"]
[Black "Vykouk, Jan"]
[Result "0-1"]
[ECO "E91"]
[WhiteElo "2330"]
[BlackElo "2476"]
[Annotator "ChessBase"]
[PlyCount "100"]
[EventDate "2022.07.14"]
[EventType "team-tourn"]
[EventCountry "CZE"]
[SourceTitle "playchess.com"]
[Source "ChessBase"]
[SourceQuality "1"]
[TimeControl "5400+30"]

1. d4 {[%emt 0:00:01]} Nf6 {[%emt 0:00:05]} 2. c4 {[%emt 0:00:05]} g6 {[%emt 0:00:05]} 3. Nc3 {[%emt 0:00:04]} Bg7 {[%emt 0:00:09]} 4. e4 {[%emt 0:00:04]} d6 {[%emt 0:00:06]} 5. Nf3 {[%emt 0:00:30]} O-O {[%emt 0:00:27]} 6. Be2 {[%emt 0:00:08]} Nbd7 {[%emt 0:00:23]} 7. O-O {[%emt 0:00:43]} e5 {[%emt 0:00:06]} 8. Be3 {[%emt 0:00:51]} Re8 {[%emt 0:00:25]} 9. Qc2 {[%emt 0:08:27]} b6 {[%emt 0:07:24]} 10. d5 {[%emt 0:03:47]} a5 {[%emt 0:00:06]} 11. Nd2 {[%emt 0:06:52]} Nc5 {[%emt 0:05:09]} 12. Qd1 {[%emt 0:03:15]} Bd7 {[%emt 0:01:54]} 13. g4 {[%emt 0:09:46]} h6 {[%emt 0:01:33]} 14. f3 {[%emt 0:04:53]} Kh7 {[%emt 0:02:53]} 15. b3 {[%emt 0:04:38]} Ng8 {[%emt 0:00:05]} 16. a3 {[%emt 0:01:09]} Bf6 {[%emt 0:00:02]} 17. b4 {[%emt 0:01:24]} Na6 {[%emt 0:06:21]} 18. c5 {[%emt 0:04:23]} bxc5 {[%emt 0:00:06]} 19. b5 {[%emt 0:04:34]} Nb8 {[%emt 0:00:07]} 20. Nc4 {[%emt 0:01:09]} Bg5 {[%emt 0:00:53]} 21. Qd2 {[%emt 0:01:45]} Bxe3+ {[%emt 0:01:40]} 22. Qxe3 {[%emt 0:00:17]} Bc8 {[%emt 0:00:15]} 23. f4 {[%emt 0:02:26]} exf4 {[%emt 0:00:22]} 24. Rxf4 {[%emt 0:02:40]} f6 {[%emt 0:00:26]} 25. a4 {[%emt 0:06:11]} Nd7 {[%emt 0:00:26]} 26. Nb1 {[%emt 0:06:23]} Ne7 {[%emt 0:03:59]} 27. Qd2 {[%emt 0:03:24]} g5 {[%emt 0:00:33]} 28. Rf2 {[%emt 0:01:01]} Ng6 {[%emt 0:01:20]} 29. Nxa5 {[%emt 0:04:51]} Rxe4 {[%emt 0:01:43]} 30. Nc3 {[%emt 0:03:53]} Rd4 {[%emt 0:09:58]} 31. Nc6 {[%emt 0:00:01]} Rxd2 {[%emt 0:00:07]} 32. Nxd8 {[%emt 0:00:03]} Nf4 {[%emt 0:00:14]} 33. Bf1 {[%emt 0:04:25]} Rxf2 {[%emt 0:00:16]} 34. Kxf2 {[%emt 0:00:01]} Ne5 {[%emt 0:00:16]} 35. h3 {[%emt 0:00:52]} Bxg4 {[%emt 0:03:50]} 36. hxg4 {[%emt 0:00:03]} Rxd8 {[%emt 0:00:09]} 37. Kg3 {[%emt 0:05:31]} Ra8 {[%emt 0:15:55]} 38. a5 {[%emt 0:00:14]} Kg7 {[%emt 0:12:16]} 39. a6 {[%emt 0:00:10]} Nd7 {[%emt 0:01:51]} 40. Re1 {[%emt 0:02:53]} Kf7 {[%emt 0:00:24]} 41. Bg2 {[%emt 0:01:26]} Nb6 {[%emt 0:03:47]} 42. Be4 {[%emt 0:00:01]} Re8 {[%emt 0:00:57]} 43. Kf3 {[%emt 0:00:30]} h5 {[%emt 0:00:21]} 44. gxh5 {[%emt 0:00:02]} f5 {[%emt 0:00:15]} 45. Rg1 {[%emt 0:00:38]} fxe4+ {[%emt 0:00:10]} 46. Nxe4 {[%emt 0:00:02]} Nxh5 {[%emt 0:00:52]} 47. Nxg5+ {[%emt 0:01:04]} Ke7 {[%emt 0:00:31]} 48. Re1+ {[%emt 0:04:07]} Kd7 {[%emt 0:00:12]} 49. Rxe8 {[%emt 0:00:37]} Kxe8 {[%emt 0:00:05]} 50. Ne6 {[%emt 0:00:04]} Kd7 {[%emt 0:00:16]} 0-1

[Event "Czech Open-E Teams 2022"]
[Site "Pardubice"]
[Date "2022.07.15"]
[Round "3.2"]
[White "Simacek, Pavel"]
[Black "Kawulok, Marek"]
[Result "1-0"]
[ECO "E32"]
[WhiteElo "2458"]
[BlackElo "2181"]
[Annotator "ChessBase"]
[PlyCount "59"]
[EventDate "2022.07.14"]
[EventType "team-tourn"]
[EventCountry "CZE"]
[SourceTitle "playchess.com"]
[Source "ChessBase"]
[SourceQuality "1"]
[TimeControl "5400+30"]

1. d4 {[%emt 0:00:03]} Nf6 {[%emt 0:00:06]} 2. c4 {[%emt 0:00:06]} e6 {[%emt 0:00:06]} 3. Nc3 {[%emt 0:00:39]} Bb4 {[%emt 0:00:11]} 4. Qc2 {[%emt 0:00:29]} O-O {[%emt 0:00:27]} 5. e4 {[%emt 0:01:03]} c5 {[%emt 0:11:46]} 6. a3 {[%emt 0:06:53]} cxd4 {[%emt 0:12:00]} 7. axb4 {[%emt 0:00:08]} dxc3 {[%emt 0:00:05]} 8. e5 {[%emt 0:08:00]} cxb2 {[%emt 0:04:05]} 9. Bxb2 {[%emt 0:00:08]} Ne8 {[%emt 0:00:05]} 10. Bd3 {[%emt 0:00:36]} f5 11. exf6 {[%emt 0:03:25]} Nxf6 {[%emt 0:03:31]} 12. Nf3 {[%emt 0:00:05]} d6 {[%emt 0:05:07]} 13. Ng5 {[%emt 0:03:32]} Nc6 {[%emt 0:09:39]} 14. Bxh7+ {[%emt 0:07:42]} Kh8 {[%emt 0:00:34]} 15. Bg6 {[%emt 0:10:23]} Qe7 {[%emt 0:06:20]} 16. b5 {[%emt 0:04:11]} Ng4 {[%emt 0:08:54]} 17. Nf7+ {[%emt 0:05:30]} Rxf7 {[%emt 0:00:26]} 18. Bxf7 {[%emt 0:00:04]} Qxf7 {[%emt 0:01:11]} 19. bxc6 {[%emt 0:00:05]} bxc6 {[%emt 0:00:05]} 20. O-O {[%emt 0:04:08]} Qf4 {[%emt 0:09:07]} 21. g3 {[%emt 0:00:05]} Qh6 {[%emt 0:00:06]} 22. h4 {[%emt 0:02:20]} e5 {[%emt 0:01:02]} 23. Rad1 {[%emt 0:02:31]} d5 {[%emt 0:02:57]} 24. cxd5 {[%emt 0:02:59]} cxd5 {[%emt 0:00:06]} 25. Rxd5 {[%emt 0:02:21]} Bb7 {[%emt 0:02:00]} 26. Rd7 {[%emt 0:00:18]} Bc6 {[%emt 0:03:40]} 27. Rc7 {[%emt 0:00:35]} Bf3 {[%emt 0:02:40]} 28. Rc8+ {[%emt 0:00:27]} Rxc8 {[%emt 0:00:07]} 29. Qxc8+ {[%emt 0:00:04]} Kh7 {[%emt 0:00:09]} 30. Qf5+ {[%emt 0:00:05]} 1-0

[Event "Czech Open-E Teams 2022"]
[Site "Pardubice"]
[Date "2022.07.15"]
[Round "3.3"]
[White "Lhotska, Anna"]
[Black "Vlasak, Lukas"]
[Result "0-1"]
[ECO "B13"]
[WhiteElo "2113"]
[BlackElo "2442"]
[Annotator "ChessBase"]
[PlyCount "96"]
[EventDate "2022.07.14"]
[EventType "team-tourn"]
[EventCountry "CZE"]
[SourceTitle "playchess.com"]
[Source "ChessBase"]
[SourceQuality "1"]
[TimeControl "5400+30"]

1. e4 {[%emt 0:00:03]} c6 {[%emt 0:00:11]} 2. d4 {[%emt 0:00:09]} d5 {[%emt 0:00:08]} 3. exd5 {[%emt 0:00:15]} cxd5 {[%emt 0:00:08]} 4. Bd3 {[%emt 0:00:09]} Nc6 {[%emt 0:00:09]} 5. c3 {[%emt 0:00:08]} Qc7 {[%emt 0:00:08]} 6. Ne2 {[%emt 0:00:31]} Bg4 {[%emt 0:00:10]} 7. O-O {[%emt 0:00:23]} e6 {[%emt 0:01:38]} 8. Qe1 {[%emt 0:00:30]} Nf6 {[%emt 0:00:11]} 9. f3 {[%emt 0:03:10]} Bh5 {[%emt 0:00:09]} 10. Nf4 {[%emt 0:00:43]} Bg6 {[%emt 0:01:08]} 11. Qh4 {[%emt 0:09:23]} Rg8 {[%emt 0:03:42]} 12. Nxg6 {[%emt 0:06:46]} hxg6 {[%emt 0:00:11]} 13. Bf4 {[%emt 0:00:08]} Bd6 {[%emt 0:00:13]} 14. Bxd6 {[%emt 0:00:06]} Qxd6 {[%emt 0:00:09]} 15. Nd2 {[%emt 0:04:13]} Ne7 {[%emt 0:06:41]} 16. Qg3 {[%emt 0:07:26]} Nf5 {[%emt 0:07:54]} 17. Qxd6 {[%emt 0:00:53]} Nxd6 {[%emt 0:00:10]} 18. Rfe1 {[%emt 0:03:24]} Ke7 {[%emt 0:02:10]} 19. Nb3 {[%emt 0:12:07]} Rgc8 {[%emt 0:03:16]} 20. a4 {[%emt 0:02:08]} a5 {[%emt 0:05:07]} 21. Kf2 {[%emt 0:01:51]} Nd7 {[%emt 0:04:12]} 22. Re2 {[%emt 0:01:48]} Kf6 {[%emt 0:03:36]} 23. Ra3 {[%emt 0:12:32]} g5 {[%emt 0:04:11]} 24. Bb5 {[%emt 0:04:15]} Nxb5 {[%emt 0:13:25]} 25. axb5 {[%emt 0:00:17]} a4 {[%emt 0:06:13]} 26. Nc1 {[%emt 0:01:15]} Ra5 {[%emt 0:01:44]} 27. Nd3 {[%emt 0:01:56]} Rca8 {[%emt 0:01:37]} 28. Re1 {[%emt 0:00:41]} Rxb5 {[%emt 0:02:51]} 29. Rea1 {[%emt 0:00:21]} Nb6 {[%emt 0:02:12]} 30. Kg3 {[%emt 0:03:55]} Nc4 {[%emt 0:02:24]} 31. Rxa4 {[%emt 0:02:34]} Rxa4 {[%emt 0:00:30]} 32. Rxa4 {[%emt 0:00:06]} Nxb2 {[%emt 0:00:25]} 33. Nxb2 {[%emt 0:01:28]} Rxb2 {[%emt 0:00:10]} 34. c4 {[%emt 0:06:08]} dxc4 {[%emt 0:08:40]} 35. Rxc4 {[%emt 0:00:07]} Kg6 {[%emt 0:01:14]} 36. Rc7 {[%emt 0:01:28]} f5 {[%emt 0:02:03]} 37. Rd7 {[%emt 0:00:46]} Rb5 {[%emt 0:01:43]} 38. h4 {[%emt 0:03:38]} gxh4+ {[%emt 0:00:23]} 39. Kxh4 {[%emt 0:00:06]} Kf6 {[%emt 0:00:20]} 40. f4 {[%emt 0:00:44]} b6 {[%emt 0:02:57]} 41. Rb7 {[%emt 0:01:40]} Rb4 {[%emt 0:00:12]} 42. Kg3 {[%emt 0:00:29]} g5 {[%emt 0:02:15]} 43. fxg5+ {[%emt 0:00:12]} Kxg5 {[%emt 0:00:08]} 44. Rg7+ {[%emt 0:00:17]} Kf6 {[%emt 0:00:06]} 45. Rd7 {[%emt 0:00:49]} Rb3+ {[%emt 0:01:09]} 46. Kf4 {[%emt 0:01:51]} Rd3 {[%emt 0:00:40]} 47. g4 {[%emt 0:05:13]} Rxd4+ {[%emt 0:00:19]} 48. Rxd4 {[%emt 0:00:09]} e5+ {[%emt 0:00:07]} 0-1